bitfinex-derivatives/quotes_SOLF0:USTF0_20251125
["timestamp","ask_amount","ask_price","bid_price","bid_amount"]
[1764097893799,5.23012101,135.48,135.39,2.92]
[1764097893998,0.0505835,135.45,135.44,1.83069744]
[1764097894191,5.76882107,135.46,135.44,1.83069744]
[1764097894392,6.69765034,135.46,135.44,1.83069744]
[1764097895000,6.69765034,135.46,135.43,0.04720254]
[1764097895001,12.36815339,135.45,135.43,0.04720254]
[1764097895302,10.99822503,135.46,135.43,0.04720254]
[1764097895499,10.94867469,135.45,135.43,0.04720254]
[1764097895696,5.2288213,135.45,135.43,0.04720254]
[1764097896009,10.95756003,135.45,135.43,0.04720254]
[1764097896305,0.04955034,135.46,135.43,0.04720254]
[1764097896504,2.74949244,135.44,135.43,0.04720254]
[1764097898099,13.71032459,135.45,135.43,0.04720254]
[1764097899204,8.47882278,135.45,135.43,0.04720254]
[1764097899401,6.6487,135.44,135.43,0.04720254]
[1764097899596,37.40355125,135.44,135.43,0.04720254]
[1764097900105,43.13996588,135.44,135.43,0.04720254]
[1764097900299,6.6502,135.42,135.38,2.92]
[1764097900498,6.6502,135.42,135.41,1.8354716]
[1764097900706,11.88709814,135.42,135.4,1.8354873]
[1764097900908,6.6497,135.42,135.4,1.8354873]
[1764097901110,6.6497,135.42,135.34,9.5732]
[1764097901111,103.4498,135.41,135.34,2.92]
[1764097901313,0.05661774,135.39,135.36,0.0538426]
[1764097901508,25.52,135.38,135.36,0.0538426]
[1764097905014,25.52,135.38,135.36,2.9738426]
[1764097905911,25.52,135.38,135.36,0.0538426]
[1764097906308,25.52,135.38,135.36,2.9738426]
[1764097907112,25.52,135.38,135.36,0.0538426]
[1764097907315,2.74949244,135.37,135.36,0.0538426]
[1764097907516,2.74949244,135.37,135.3,3.06]
[1764097907517,7.98811148,135.37,135.3,3.06]
[1764097907716,2.74949244,135.37,135.36,1.83713901]
[1764097908613,25.57602968,135.38,135.36,1.83713901]
[1764097908914,2.74949244,135.37,135.36,1.83713901]
[1764097909504,2.74949244,135.37,135.35,0.05169892]
[1764097909814,2.74949244,135.37,135.36,1.83551015]
[1764097910215,25.57602968,135.38,135.36,1.83551015]
[1764097910419,2.74949244,135.37,135.36,1.83551015]
[1764097910618,2.74949244,135.37,135.35,0.05169892]
[1764097911208,6.6539,135.34,135.26,3.06]
[1764097911413,10.97220864,135.33,135.22,3.06]
[1764097911615,39.26170108,135.32,135.28,4.89545323]
[1764097911918,28.28949244,135.32,135.3,1.83545323]
[1764097912106,28.28949244,135.32,135.27,4.85889]
[1764097912310,0.05348511,135.31,135.3,1.8350868]
[1764097912819,0.05348511,135.31,135.27,1.79889]
[1764097912820,6.70868511,135.31,135.27,1.79889]
[1764097913015,2.74949244,135.29,135.28,1.83336685]
[1764097913208,2.74949244,135.29,135.27,1.79889]
[1764097913610,2.74949244,135.29,135.28,7.801e-05]
[1764097913812,2.74949244,135.23,135.18,3.06]
[1764097914014,2.74949244,135.21,135.15,3.06]
[1764097914215,2.79809907,135.19,135.11,3.06]
[1764097914523,25.60860663,135.19,135.11,3.06]
[1764097914817,25.60860663,135.19,135.18,1.82890607]
[1764097915218,25.60860663,135.19,135.12,3.06001812]
[1764097915421,0.04860663,135.19,135.13,113.3841]
[1764097915616,0.04860663,135.19,135.14,3.06]
[1764097916121,0.04860663,135.19,135.18,1.82458029]
[1764097916321,0.04860663,135.19,135.14,3.06]
[1764097916617,0.04860663,135.19,135.18,1.82132336]
[1764097916916,0.04860663,135.19,135.18,4.88132336]
[1764097917122,0.04860663,135.19,135.18,3.06]
[1764097918119,25.56,135.21,135.18,3.06]
[1764097919116,25.60732222,135.21,135.18,3.10821513]
[1764097921523,25.60732222,135.21,135.18,0.04821513]
[1764097923230,32.26702222,135.21,135.18,0.04821513]
[1764097923424,32.26702222,135.21,135.2,1.81102079]
[1764097923822,6.6601,135.2,135.18,0.04821513]
[1764097924724,6.6601,135.2,135.19,1.80987056]
[1764097925621,6.6601,135.2,135.12,3.09001812]
[1764097925829,103.555,135.26,135.16,3.09]
[1764097926025,103.5767,135.23,135.12,1.812e-05]
[1764097926225,103.5845,135.22,135.12,1.812e-05]
[1764097926434,103.5942,135.21,135.13,3.09]
[1764097926637,0.04913024,135.18,135.13,3.09]
[1764097927734,103.5845,135.22,135.12,1.812e-05]
[1764097927735,13.35014847,135.28,135.18,3.09]
[1764097927931,25.58,135.27,135.21,1.80640413]
[1764097928134,25.58,135.27,135.22,1.80640413]
[1764097928324,25.58,135.27,135.23,1.80640413]
[1764097928631,25.58,135.27,135.19,6.6602]
[1764097928931,0.05431261,135.24,135.23,1.80602038]
[1764097930233,0.05431261,135.24,135.12,1.812e-05]
[1764097930537,6.6588,135.23,135.15,3.09]
[1764097930736,25.58,135.22,135.15,3.09]
[1764097931238,32.2391,135.22,135.15,3.09]
[1764097931433,0.05537959,135.2,135.15,3.09]
[1764097932435,0.05537959,135.2,135.16,3.09]
[1764097937139,6.71537959,135.2,135.16,3.09]
[1764097937443,0.05537959,135.2,135.16,3.09]
[1764097938439,6.6605,135.19,135.16,3.09]
[1764097940841,6.6609,135.18,135.16,3.09]
[1764097941229,25.56,135.24,135.17,3.12]
[1764097941541,25.56,135.24,135.22,1.81331062]
[1764097941740,25.56,135.24,135.17,3.12]
[1764097941741,25.56,135.24,135.23,1.062e-05]
[1764097941942,31.28235193,135.24,135.23,1.062e-05]
[1764097945444,6.6601,135.2,135.17,3.12]
[1764097946141,32.2201,135.2,135.17,3.12]
[1764097946541,6.6605,135.19,135.17,3.12]
[1764097948239,25.61083866,135.2,135.12,1.812e-05]
[1764097948240,6.6616,135.17,135.12,1.812e-05]
[1764097948444,0.05270356,135.16,135.14,3.12]
[1764097950659,6.6609,135.18,135.14,3.12]
[1764097951444,0.05286029,135.17,135.16,3.12]
[1764097952039,25.56,135.2,135.16,3.12]
[1764097953041,0.04863139,135.19,135.16,3.12]
[1764097953248,0.04863139,135.19,135.16,9.7818]
[1764097953444,0.04863139,135.19,135.17,3.12]
[1764097955549,6.6589,135.23,135.19,3.12]
[1764097955752,5.80323623,135.22,135.19,3.12]
[1764097955953,6.6589,135.23,135.19,3.12]
[1764097956344,32.2179,135.25,135.21,3.12]
[1764097956552,0.04702431,135.24,135.23,3.12]
[1764097959553,0.04702431,135.24,135.22,0.05427628]
[1764097959554,6.6584,135.23,135.22,0.05427628]
[1764097960755,7.8484,135.23,135.22,0.05427628]
[1764097963760,6.6599,135.2,135.19,3.12]
[1764097966253,0.05627108,135.21,135.19,3.12]
[1764097970759,0.05627108,135.21,135.2,3.08]
[1764097971259,32.2179,135.25,135.21,3.08]
[1764097972265,0.05312705,135.24,135.23,3.08]
[1764097973162,0.05312705,135.24,135.22,0.05450883]
[1764097973163,4.3597178,135.24,135.22,0.05450883]
[1764097973364,11.0177178,135.24,135.22,3.13450883]
[1764097975568,12.2077178,135.24,135.22,0.05450883]
[1764097975873,1.19,135.23,135.22,0.05450883]
[1764097976775,12.2077178,135.24,135.22,0.05450883]
[1764097980477,1.19,135.23,135.22,0.05450883]
[1764097980674,1.19,135.23,135.12,1.812e-05]
[1764097980875,103.615,135.18,135.12,1.812e-05]
[1764097981078,103.623,135.17,135.12,1.812e-05]
[1764097981274,4.30659075,135.18,135.12,1.812e-05]
[1764097981580,211.45519075,135.24,135.12,1.812e-05]
[1764097981581,25.54,135.23,135.14,3.12]
[1764097981879,0.05462581,135.2,135.18,3.12]
[1764097984579,25.54,135.23,135.19,3.12]
[1764097985083,2.75631586,135.25,135.19,3.12]
[1764097985283,2.75631586,135.25,135.2,3.12]
[1764097985685,0.04970577,135.24,135.22,3.12]
[1764097987977,25.54,135.27,135.22,3.12]
[1764097987978,28.29631586,135.27,135.22,3.12]
[1764097988779,28.29631586,135.27,135.24,3.12]
[1764097989084,28.34461864,135.27,135.24,3.17395811]
[1764097990690,1.24,135.26,135.24,0.05395811]
[1764097990982,28.34461864,135.27,135.24,0.05395811]
[1764097990983,3.99631586,135.25,135.24,0.05395811]
[1764097994089,2.75631586,135.25,135.24,0.05395811]
[1764097994679,25.58830278,135.27,135.24,0.05395811]
[1764097994879,2.75631586,135.25,135.24,0.05395811]
[1764097996089,3.99631586,135.25,135.24,0.05395811]
[1764097997884,28.34461864,135.27,135.24,3.19395811]
[1764097999792,28.34461864,135.27,135.24,0.05395811]
[1764097999793,1.22,135.26,135.24,0.05395811]
[1764098002790,25.58830278,135.27,135.24,3.19395811]
[1764098003398,0.04830278,135.27,135.26,3.14]
[1764098003892,3.97631586,135.31,135.27,3.14]
[1764098004296,1.22,135.3,135.27,3.14]
[1764098004898,1.27251998,135.3,135.27,3.19605374]
[1764098005199,1.27251998,135.3,135.27,0.05605374]
[1764098006200,1.22,135.28,135.27,0.05605374]
[1764098007790,10.63191586,135.29,135.27,0.05605374]
[1764098008094,1.22,135.28,135.27,0.05605374]
[1764098008291,6.6556,135.29,135.27,0.05605374]
[1764098008495,2.80883584,135.3,135.27,3.19605374]
[1764098008686,0.05251998,135.3,135.27,3.19605374]
[1764098010199,6.70751998,135.3,135.27,3.19605374]
[1764098010397,1.27251998,135.3,135.27,3.19605374]
[1764098011309,1.22,135.28,135.27,0.05605374]
[1764098011605,3.97631586,135.28,135.27,0.05605374]
[1764098013604,1.22,135.27,135.21,3.14]
[1764098014101,2.75631586,135.26,135.22,3.14]
[1764098014291,3.97631586,135.26,135.22,3.14]
[1764098014495,0.05338814,135.25,135.23,0.05393296]
[1764098014693,0.05338814,135.25,135.23,3.19393296]
[1764098016403,0.05338814,135.25,135.23,9.85233296]
[1764098019192,0.05338814,135.25,135.24,6.6579]
[1764098022007,0.05338814,135.25,135.24,9.7979]
[1764098022309,1.22,135.29,135.27,6.656]
[1764098023107,1.27509413,135.29,135.27,9.85067587]
[1764098023703,0.05509413,135.29,135.28,6.6559]
[1764098023906,0.05509413,135.29,135.28,9.7959]
[1764098024709,0.05509413,135.29,135.28,6.6559]
[1764098026601,0.05509413,135.29,135.28,9.7959]
[1764098027509,25.54,135.32,135.28,3.14]
[1764098027708,25.54,135.32,135.3,2.96]
[1764098028708,0.05356434,135.32,135.31,2.96]
[1764098029100,0.05356434,135.32,135.3,0.05222434]
[1764098029306,0.05356434,135.32,135.3,3.01222434]
[1764098029914,0.05356434,135.32,135.3,9.66712434]
[1764098030104,0.05356434,135.32,135.31,2.96]
[1764098033114,7.892,135.37,135.32,2.96]
[1764098033307,1.24,135.37,135.32,2.96]
[1764098034215,0.05311018,135.36,135.34,2.96]
[1764098035112,0.05311018,135.36,135.33,0.04861854]
[1764098035113,0.05311018,135.36,135.35,9.6125]
[1764098036117,0.05311018,135.36,135.35,2.96]
[1764098040321,0.05311018,135.36,135.34,9.8529]
[1764098040521,0.05311018,135.36,135.35,3.2]
[1764098041325,25.52,135.38,135.37,3.2]
[1764098041821,1.24,135.41,135.37,3.2]
[1764098042225,1.24,135.41,135.37,9.8512]
[1764098042429,0.0491143,135.4,135.38,3.25552255]
[1764098042617,1.2891143,135.4,135.38,0.05552255]
[1764098042821,1.24,135.39,135.38,0.05552255]
[1764098045726,10.69553016,135.4,135.38,0.05552255]
[1764098045928,4.04543016,135.4,135.38,0.05552255]
[1764098046524,1.24,135.39,135.38,0.05552255]
[1764098047027,7.8905,135.39,135.38,0.05552255]
[1764098047228,1.24,135.39,135.38,0.05552255]
[1764098054842,7.8905,135.39,135.38,0.05552255]
[1764098056843,1.24,135.39,135.38,0.05552255]
[1764098057844,7.8905,135.39,135.38,0.05552255]
[1764098058043,1.24,135.39,135.38,0.05552255]
[1764098059836,7.9392143,135.4,135.38,0.05552255]
[1764098060041,0.0491143,135.4,135.38,3.18552255]
[1764098061437,0.0491143,135.4,135.39,3.13]
[1764098065042,6.6991143,135.4,135.39,3.13]
[1764098065249,6.6991143,135.4,135.38,3.18552255]
[1764098065443,1.2891143,135.4,135.38,0.05552255]
[1764098065643,6.6505,135.39,135.38,0.05552255]
[1764098065843,6.6505,135.39,135.38,3.18552255]
[1764098066550,6.6505,135.39,135.38,0.05552255]
[1764098067354,1.2891143,135.4,135.38,3.18552255]
[1764098068054,0.0491143,135.4,135.38,3.18552255]
[1764098069151,1.2891143,135.4,135.38,3.18552255]
[1764098069348,0.0491143,135.4,135.38,3.18552255]
[1764098072855,1.2891143,135.4,135.38,0.05552255]
[1764098073053,1.18,135.38,135.3,3.13]
[1764098073249,1.18,135.37,135.3,3.13]
[1764098073651,1.18,135.34,135.31,3.13]
[1764098073850,1.18,135.34,135.27,3.13]
[1764098074061,0.05153049,135.32,135.3,3.13]
[1764098080464,5.47750452,135.38,135.3,3.13]
[1764098080763,1.18,135.38,135.3,3.13]
[1764098081460,0.05081229,135.35,135.34,3.13]
[1764098082264,32.1309,135.39,135.34,3.13]
[1764098083050,33.3609,135.39,135.34,3.13]
[1764098083369,0.05351059,135.38,135.34,3.13]
[1764098084366,0.05351059,135.38,135.35,3.13]
[1764098085165,0.05351059,135.38,135.37,3.13]
[1764098093679,7.92461059,135.38,135.36,3.23243242]
[1764098094174,0.05351059,135.38,135.36,3.23243242]
[1764098095179,1.27351059,135.38,135.36,0.05243242]
[1764098095476,7.92461059,135.38,135.36,0.05243242]
[1764098095884,7.92461059,135.38,135.36,3.23243242]
[1764098096883,6.70461059,135.38,135.36,3.23243242]
[1764098097075,0.05351059,135.38,135.36,3.23243242]
[1764098102382,6.70461059,135.38,135.36,3.23243242]
[1764098103385,6.6515,135.37,135.36,3.23243242]
[1764098104487,6.70461059,135.38,135.36,3.23243242]
[1764098105682,0.05351059,135.38,135.36,3.23243242]
[1764098108481,6.6498,135.41,135.37,9.5915]
[1764098108789,6.6498,135.41,135.38,2.94]
[1764098108978,29.47987276,135.44,135.39,2.94]
[1764098108979,28.24987276,135.44,135.39,2.94]
[1764098109587,0.04911101,135.43,135.41,2.94]
[1764098110387,6.6491,135.42,135.41,2.94]
[1764098110600,0.04911101,135.43,135.41,2.94]
[1764098110884,0.04911101,135.43,135.4,0.05275267]
[1764098110885,1.29,135.41,135.4,0.05275267]
[1764098111079,1.29,135.41,135.34,2.94]
[1764098111381,4.03987276,135.39,135.34,2.94]
[1764098111782,2.74987276,135.36,135.34,2.94]
[1764098112291,0.05408225,135.36,135.34,2.99251084]
[1764098118793,0.05408225,135.36,135.34,9.64541084]
[1764098119095,0.05408225,135.36,135.35,2.99]
[1764098120287,4.09395501,135.36,135.34,0.05251084]
[1764098120686,4.03987276,135.35,135.34,0.05251084]
[1764098121497,0.05408225,135.36,135.34,3.04251084]
[1764098122201,1.34408225,135.36,135.34,0.05251084]
[1764098123185,1.29,135.35,135.34,0.05251084]
[1764098130199,2.80395501,135.36,135.34,9.69551084]
[1764098130401,0.05408225,135.36,135.34,3.04251084]
[1764098131309,1.29,135.41,135.36,2.99]
[1764098132099,1.29,135.41,135.38,6.6508]
[1764098132411,1.29,135.39,135.37,0.05253523]
[1764098133700,2.80632111,135.4,135.37,0.05253523]
[1764098133701,4.03987276,135.38,135.37,0.05253523]
[1764098138512,10.69087276,135.38,135.37,0.05253523]
[1764098138715,36.15087276,135.38,135.37,0.05253523]
[1764098139915,1.29,135.35,135.32,2.99]
[1764098140418,7.9427,135.35,135.32,2.99]
[1764098140714,7.99694686,135.35,135.32,3.04051409]
[1764098141818,10.69337276,135.33,135.32,0.05051409]
[1764098142115,36.15337276,135.33,135.32,0.05051409]
[1764098144313,1.29,135.32,135.26,6.6566]
[1764098144522,1.29,135.28,135.24,2.99]
[1764098145515,1.34016858,135.27,135.25,0.04755888]
[1764098146314,4.09004134,135.27,135.25,0.04755888]
[1764098146514,1.29,135.26,135.25,0.04755888]
[1764098148021,4.09004134,135.27,135.25,0.04755888]
[1764098148427,1.29,135.26,135.25,0.04755888]
[1764098148923,1.29,135.26,135.21,6.6591]
[1764098149131,1.29,135.23,135.21,6.6591]
[1764098149516,1.29,135.23,135.19,3.0]
[1764098150023,1.34061319,135.22,135.2,0.04986683]
[1764098150223,1.34061319,135.22,135.2,6.70966683]
[1764098151023,0.05061319,135.22,135.2,9.70966683]
[1764098151624,0.05061319,135.22,135.2,3.04986683]
[1764098152220,0.05061319,135.22,135.2,9.70966683]
[1764098154420,0.05061319,135.22,135.21,3.0]
[1764098155719,0.05061319,135.22,135.2,9.70966683]
[1764098155918,0.05061319,135.22,135.2,3.04986683]
[1764098157328,0.05061319,135.22,135.2,9.70966683]
[1764098158917,0.05061319,135.22,135.2,3.04986683]
[1764098160224,0.05061319,135.22,135.2,9.70966683]
[1764098160623,1.34061319,135.22,135.2,0.04986683]
[1764098161024,7.99961319,135.22,135.2,0.04986683]
[1764098161226,1.34061319,135.22,135.2,0.04986683]
[1764098161630,1.34061319,135.22,135.2,3.01986683]
[1764098164834,1.34061319,135.22,135.14,2.97]
[1764098164835,1.29,135.2,135.14,2.97]
[1764098165036,1.29,135.16,135.12,1.812e-05]
[1764098165539,1.29,135.16,135.12,2.97001812]
[1764098165927,0.05451175,135.15,135.13,3.02115577]
[1764098166251,1.34451175,135.15,135.13,0.05115577]
[1764098166425,1.29,135.14,135.13,0.05115577]
[1764098168924,1.29,135.11,135.07,2.97]
[1764098169132,26.77,135.11,135.07,2.97]
[1764098169734,0.05269904,135.1,135.08,3.01810747]
[1764098170336,1.34269904,135.1,135.08,0.04810747]
[1764098172328,1.29,135.09,135.08,0.04810747]
[1764098172532,1.29,135.09,135.03,2.97]
[1764098173039,1.29,135.08,135.03,2.97]
[1764098173338,25.5,135.07,134.99,2.97]
[1764098173542,1.33756524,135.06,135.04,0.04840987]
[1764098173836,1.33756524,135.06,135.04,3.01803772]
[1764098173837,0.04756524,135.06,135.04,3.01803772]
[1764098174531,1.33756524,135.06,135.04,0.04803772]
[1764098175538,26.79,135.05,135.04,0.04803772]
[1764098176126,26.79,135.05,135.01,2.97]
[1764098176329,0.04756524,135.06,135.01,2.97]
[1764098177038,1.33756524,135.06,134.98,9.6404]
[1764098177229,1.33756524,135.06,135.01,0.04846265]
[1764098177631,1.29,135.02,135.01,0.04846265]
[1764098177836,1.29,135.01,134.95,3.0]
[1764098178449,7.9594,135.01,134.95,3.0]
[1764098178632,1.29,135.01,134.95,9.672]
[1764098178832,0.04864826,134.99,134.98,3.0]
[1764098179237,0.04864826,134.99,134.97,3.0556071]
[1764098180845,25.5,135.02,134.98,3.0]
[1764098181147,26.79,135.06,134.98,3.0]
[1764098181544,12.26893388,135.09,135.02,3.0]
[1764098181738,0.05677162,135.07,135.04,0.05071635]
[1764098181938,1.34677162,135.07,135.04,0.05071635]
[1764098182338,26.84677162,135.07,135.04,0.05071635]
[1764098182538,1.34677162,135.07,135.04,0.05071635]
[1764098182839,1.29,135.06,135.04,0.05071635]
[1764098183345,1.29,135.06,135.0,6.6695]
[1764098183648,1.29,135.05,134.98,9.6705]
[1764098184042,7.9579,135.04,134.99,9.6701]
[1764098184243,7.9579,135.04,135.0,3.0]
[1764098184448,0.04994098,135.03,135.01,0.05449795]
[1764098185552,8.00834098,135.03,135.01,0.05449795]
[1764098186850,1.29,135.02,135.01,0.05449795]
[1764098187444,26.81,135.02,135.01,0.05449795]
[1764098187647,25.52,135.02,135.01,0.05449795]
[1764098188036,26.81,135.02,135.01,0.05449795]
[1764098190946,1.33994098,135.03,135.01,0.05449795]
[1764098191255,26.85994098,135.03,135.01,0.05449795]
[1764098191548,1.29,135.02,135.01,0.05449795]
[1764098193046,7.9599,135.0,134.94,3.0]
[1764098193248,1.29,135.0,134.94,3.0]
[1764098193559,1.29,135.0,134.96,9.6717]
[1764098193761,6.6693,135.01,134.97,3.0]
[1764098193969,0.05507246,135.0,134.98,3.05384]
[1764098194260,1.34507246,135.0,134.98,0.05384]
[1764098195260,0.05507246,135.0,134.98,3.05384]
[1764098196259,0.05507246,135.0,134.98,9.72454]
[1764098197660,0.05507246,135.0,134.99,3.0]
[1764098202361,25.52,135.02,134.99,3.0]
[1764098205559,1.45627941,135.05,135.02,3.05236332]
[1764098205753,1.4,135.03,135.02,0.05236332]
[1764098205950,7.28254165,135.03,135.02,0.05236332]
[1764098206365,5.88254165,135.03,135.02,0.05236332]
[1764098208259,1.35,135.02,134.86,64.84571842]
[1764098208462,12.39193179,135.01,134.86,2.84571842]
[1764098208758,2.6,134.89,134.86,2.84571842]
[1764098208965,28.12,134.88,134.86,2.84571842]
[1764098209157,6.67408387,134.87,134.86,2.84571842]
[1764098209352,6.67408387,134.87,134.76,97.80981005]
[1764098209563,6.67408387,134.86,134.79,4.31755608]
[1764098209758,6.67408387,134.85,134.79,4.31755608]
[1764098210067,6.67408387,134.84,134.8,0.05171075]
[1764098210264,0.05245359,134.83,134.8,0.05171075]
[1764098210454,3.11,134.9,134.81,3.08]
[1764098210857,3.11,134.93,134.81,106.9752]
[1764098211169,25.56,134.9,134.82,3.08]
[1764098211352,0.04918691,134.87,134.85,0.05559202]
[1764098211868,6.69384847,134.96,134.86,3.08]
[1764098212068,3.11,134.94,134.92,1.83161048]
[1764098212362,3.11,134.94,134.86,3.08]
[1764098212363,3.11,134.92,134.86,3.08]
[1764098212668,25.58,134.93,134.87,3.08]
[1764098212965,25.6,134.93,134.88,3.08]
[1764098213158,0.05472577,134.91,134.89,3.13596756]
[1764098214270,0.05472577,134.91,134.89,0.05596756]
[1764098214468,0.05472577,134.91,134.89,3.13596756]
[1764098215365,0.05472577,134.91,134.89,0.05596756]
[1764098215572,3.16472577,134.91,134.89,0.05596756]
[1764098217764,0.05472577,134.91,134.89,3.13596756]
[1764098218071,0.05472577,134.91,134.89,0.05596756]
[1764098219064,3.16472577,134.91,134.89,0.05596756]
[1764098220372,0.05472577,134.91,134.89,3.13596756]
[1764098222773,25.62,134.95,134.91,3.08]
[1764098223373,25.62,134.95,134.9,103.8266]
[1764098223374,25.62,134.95,134.93,3.08]
[1764098223783,0.04872553,134.95,134.93,3.12733253]
[1764098224480,25.62,135.0,134.93,3.12733253]
[1764098224676,6.31596965,134.99,134.93,3.12733253]
[1764098224882,6.31596965,134.98,134.93,3.12733253]
[1764098225077,6.31596965,134.97,134.93,3.12733253]
[1764098225291,28.65,135.01,134.93,3.12733253]
[1764098225471,0.05660422,134.98,134.93,3.12733253]
[1764098225781,6.31576386,134.97,134.93,3.12733253]
[1764098226083,6.31570561,134.96,134.93,3.12733253]
[1764098226288,0.05660422,134.98,134.93,3.12733253]
[1764098226480,6.31728862,134.97,134.93,3.12733253]
[1764098226677,0.05660422,134.98,134.93,3.12733253]
[1764098226987,6.31730241,134.97,134.93,3.12733253]
[1764098227186,0.05660422,134.98,134.93,3.12733253]
[1764098227394,0.05660422,134.98,134.95,3.08]
[1764098228088,3.03,134.96,134.93,0.04733253]
[1764098228474,6.51203296,134.95,134.93,0.04733253]
[1764098228782,3.03,134.96,134.93,0.04733253]
[1764098228981,6.51369972,134.95,134.93,0.04733253]
[1764098229182,3.03,134.96,134.93,0.04733253]
[1764098229381,6.5140819,134.95,134.93,0.04733253]
[1764098229688,6.5140819,134.94,134.93,0.04733253]
[1764098231489,0.05043477,134.95,134.93,0.04733253]
[1764098232188,9.65712851,134.94,134.93,0.04733253]
[1764098232584,3.03,134.93,134.87,3.08]
[1764098232775,6.62712851,134.94,134.87,3.08]
[1764098232776,3.03,134.91,134.87,3.08]
[1764098233176,9.65679262,134.9,134.86,6.6764]
[1764098233377,6.62500209,134.89,134.84,3.08]
[1764098233591,0.04673274,134.88,134.85,3.13206122]
[1764098233992,0.04673274,134.88,134.85,9.80916122]
[1764098234387,0.04673274,134.88,134.86,3.08]
[1764098236885,0.04673274,134.88,134.87,3.08]
[1764098237796,3.03,134.93,134.88,9.5755]
[1764098237992,9.58426339,134.92,134.88,9.5755]
[1764098238190,6.62426339,134.91,134.88,9.5755]
[1764098238391,6.62426339,134.9,134.88,9.5755]
[1764098238591,2.96,134.92,134.88,9.5755]
[1764098238793,6.67045488,134.91,134.89,0.04676257]
[1764098238996,6.62257783,134.9,134.89,0.04676257]
[1764098239196,9.58257783,134.9,134.89,0.04676257]
[1764098240401,6.62257783,134.9,134.89,0.04676257]
[1764098241193,9.58257783,134.9,134.89,0.04676257]
[1764098242302,6.62257783,134.9,134.89,0.04676257]
[1764098243903,2.96,134.88,134.83,2.9]
[1764098244100,6.62257783,134.87,134.83,2.9]
[1764098244300,9.58257783,134.86,134.83,9.5778]
[1764098244497,2.96,134.84,134.8,2.9]
[1764098244696,6.80201464,134.83,134.8,2.9]
[1764098244907,6.80201464,134.82,134.8,2.9]
[1764098245104,0.05384868,134.83,134.8,2.95318561]
[1764098245297,6.80226238,134.82,134.8,2.95318561]
[1764098245492,0.05384868,134.83,134.8,2.95318561]
[1764098245698,6.77045083,134.82,134.8,2.95318561]
[1764098245893,0.05384868,134.83,134.8,2.95318561]
[1764098246197,6.77045083,134.82,134.8,2.95318561]
[1764098246401,6.77045083,134.81,134.8,2.95318561]
[1764098246601,6.77045083,134.81,134.8,0.05318561]
[1764098246803,6.77045083,134.81,134.8,2.95318561]
[1764098247095,6.77045083,134.81,134.8,0.05318561]
[1764098247298,9.73045083,134.81,134.8,0.05318561]
[1764098249310,2.96,134.8,134.74,2.9]
[1764098249503,2.96,134.78,134.74,2.9]
[1764098249704,2.96,134.83,134.76,1.18]
[1764098250305,0.05545489,134.81,134.78,0.04994759]
[1764098250509,3.01545489,134.81,134.78,0.04994759]
[1764098250712,3.01545489,134.81,134.78,6.73044759]
[1764098251014,22.13038918,134.91,134.78,6.73044759]
[1764098251015,2.96,134.87,134.8,1.18]
[1764098251201,2.96,134.87,134.86,0.0027613]
[1764098251404,2.96,134.87,134.8,1.18]
[1764098251604,2.96,134.87,134.81,106.7949]
[1764098251810,2.96,134.9,134.86,2.9]
[1764098252007,88.94,134.93,134.87,2.95466631]
[1764098252008,0.04929853,134.89,134.87,2.95466631]
[1764098252212,2.96,134.96,134.9,6.6745]
[1764098252410,2.96,134.96,134.95,1.83245505]
[1764098252609,2.96,134.96,134.88,2.9]
[1764098252805,6.6724,134.95,134.89,6.675]
[1764098253108,3.01307899,134.93,134.91,0.05192057]
[1764098255605,3.01307899,134.93,134.92,0.00474695]
[1764098255906,2.96,134.91,134.84,9.5775]
[1764098256106,28.58,134.9,134.84,2.9]
[1764098256506,3.00941093,134.88,134.86,0.05516886]
[1764098256910,0.04941093,134.88,134.86,9.63166886]
[1764098257116,0.04941093,134.88,134.87,2.9]
[1764098257804,25.62,134.91,134.88,2.9]
[1764098258208,28.58,134.91,134.87,6.6759]
[1764098258523,28.58,134.91,134.87,9.5759]
[1764098259016,0.0543261,134.9,134.87,9.5759]